[Event "Late-Titled-Tuesday-Blitz-February-27-2024"]
[Site "Chess.com"]
[Date "2024.02.27"]
[Round "3"]
[White "Gentlejimmy7"]
[Black "KorolDimitriy75"]
[Result "0-1"]
[WhiteElo "2612"]
[BlackElo "2449"]
[TimeControl "180+1"]
[EndTime "14:28:48 PST"]
[Termination "KorolDimitriy75 won on time"]

1. e4 {[%clk 0:02:53.3]} 1... c5 {[%clk 0:03:00.2]} 2. Nf3 {[%clk 0:02:53.6]}
2... d6 {[%clk 0:03:00.6]} 3. d4 {[%clk 0:02:51.2]} 3... cxd4 {[%clk 0:03:01.5]}
4. Nxd4 {[%clk 0:02:51]} 4... Nf6 {[%clk 0:03:02.1]} 5. Bb5+ {[%clk 0:02:49.8]}
5... Bd7 {[%clk 0:03:00.3]} 6. Bxd7+ {[%clk 0:02:49.7]} 6... Qxd7 {[%clk
0:03:00.1]} 7. f3 {[%clk 0:02:40.9]} 7... Nc6 {[%clk 0:02:54.5]} 8. Be3 {[%clk
0:02:33.7]} 8... Rc8 {[%clk 0:02:50.1]} 9. Nc3 {[%clk 0:02:32.1]} 9... g6 {[%clk
0:02:49.1]} 10. Qd2 {[%clk 0:02:30.3]} 10... Bg7 {[%clk 0:02:48.8]} 11. O-O-O
{[%clk 0:02:24.4]} 11... O-O {[%clk 0:02:44.4]} 12. h4 {[%clk 0:02:21.9]} 12...
Ne5 {[%clk 0:02:40.2]} 13. g4 {[%clk 0:01:51.5]} 13... Nc4 {[%clk 0:02:39.3]}
14. Qe2 {[%clk 0:01:52]} 14... Qc7 {[%clk 0:01:39.2]} 15. Kb1 {[%clk 0:01:48.6]}
15... a6 {[%clk 0:01:22.9]} 16. Bc1 {[%clk 0:01:44.1]} 16... b5 {[%clk
0:01:20.7]} 17. h5 {[%clk 0:01:42.9]} 17... b4 {[%clk 0:00:37.3]} 18. Nd5 {[%clk
0:01:40.6]} 18... Nxd5 {[%clk 0:00:35.6]} 19. exd5 {[%clk 0:01:41.5]} 19... Qc5
{[%clk 0:00:30.9]} 20. Nc6 {[%clk 0:01:38.5]} 20... Rxc6 {[%clk 0:00:25.9]} 21.
dxc6 {[%clk 0:01:33.5]} 21... e6 {[%clk 0:00:23.5]} 22. hxg6 {[%clk 0:01:30.2]}
22... hxg6 {[%clk 0:00:22.9]} 23. Bh6 {[%clk 0:00:49.1]} 23... Bxb2 {[%clk
0:00:16.3]} 24. Bxf8 {[%clk 0:00:40.8]} 24... Kxf8 {[%clk 0:00:17.2]} 25. Qd3
{[%clk 0:00:22.7]} 25... Be5 {[%clk 0:00:15.2]} 26. a3 {[%clk 0:00:13.5]} 26...
Nxa3+ {[%clk 0:00:12.5]} 27. Ka2 {[%clk 0:00:12.7]} 27... Nxc2 {[%clk
0:00:10.9]} 28. Qxa6 {[%clk 0:00:03.5]} 28... Kg7 {[%clk 0:00:03.4]} 29. Qa8
{[%clk 0:00:01.6]} 29... Qc4+ {[%clk 0:00:03.1]} 0-1

[Event "Late-Titled-Tuesday-Blitz-February-27-2024"]
[Site "Chess.com"]
[Date "2024.02.27"]
[Round "3"]
[White "djano"]
[Black "Jahonas"]
[Result "1-0"]
[WhiteElo "2586"]
[BlackElo "2369"]
[TimeControl "180+1"]
[EndTime "14:28:49 PST"]
[Termination "djano won by checkmate"]

1. e4 {[%clk 0:03:00.9]} 1... e5 {[%clk 0:02:58.1]} 2. Nf3 {[%clk 0:03:01.2]}
2... Nc6 {[%clk 0:02:57.8]} 3. d4 {[%clk 0:03:01.4]} 3... exd4 {[%clk
0:02:57.1]} 4. Bc4 {[%clk 0:03:02]} 4... d6 {[%clk 0:02:52.5]} 5. Nxd4 {[%clk
0:03:00.7]} 5... Nf6 {[%clk 0:02:50.3]} 6. Nc3 {[%clk 0:03:00.4]} 6... Be7
{[%clk 0:02:48.6]} 7. O-O {[%clk 0:03:00.5]} 7... O-O {[%clk 0:02:46.1]} 8. h3
{[%clk 0:03:00.4]} 8... Nxd4 {[%clk 0:02:40.2]} 9. Qxd4 {[%clk 0:03:01.3]} 9...
Bd7 {[%clk 0:02:39.5]} 10. Be3 {[%clk 0:02:52.6]} 10... Bc6 {[%clk 0:02:37.5]}
11. Rfe1 {[%clk 0:02:49.1]} 11... a6 {[%clk 0:02:36.1]} 12. Rad1 {[%clk
0:02:44]} 12... Re8 {[%clk 0:02:28.8]} 13. e5 {[%clk 0:02:25]} 13... dxe5 {[%clk
0:02:27.6]} 14. Bxf7+ {[%clk 0:02:25.2]} 14... Kxf7 {[%clk 0:02:18.4]} 15. Qc4+
{[%clk 0:02:25.2]} 15... Kf8 {[%clk 0:01:30.7]} 16. Rxd8 {[%clk 0:02:24]} 16...
Raxd8 {[%clk 0:01:28.5]} 17. Bc5 {[%clk 0:02:24.2]} 17... Bd6 {[%clk 0:01:25.6]}
18. f3 {[%clk 0:02:12]} 18... Re7 {[%clk 0:01:24.5]} 19. Ne4 {[%clk 0:02:02.6]}
19... Bd5 {[%clk 0:01:04.1]} 20. Qc3 {[%clk 0:01:56.1]} 20... Nh5 {[%clk
0:00:44.8]} 21. Nxd6 {[%clk 0:01:41]} 21... cxd6 {[%clk 0:00:44.2]} 22. Bb6
{[%clk 0:01:37.8]} 22... Rdd7 {[%clk 0:00:38]} 23. Rd1 {[%clk 0:01:34.1]} 23...
Bc6 {[%clk 0:00:36.4]} 24. Kh2 {[%clk 0:01:30.1]} 24... Nf4 {[%clk 0:00:36]} 25.
Be3 {[%clk 0:01:27.9]} 25... Nd5 {[%clk 0:00:34.2]} 26. Qb3 {[%clk 0:01:28.2]}
26... Nxe3 {[%clk 0:00:34.1]} 27. Qxe3 {[%clk 0:01:29.1]} 27... h6 {[%clk
0:00:33.5]} 28. c4 {[%clk 0:01:28.6]} 28... Kf7 {[%clk 0:00:32.8]} 29. b3 {[%clk
0:01:27.6]} 29... Re6 {[%clk 0:00:32.7]} 30. Qc3 {[%clk 0:01:23.6]} 30... Rf6
{[%clk 0:00:32.5]} 31. Rd2 {[%clk 0:01:21.4]} 31... g5 {[%clk 0:00:32.8]} 32.
Qd3 {[%clk 0:01:20.9]} 32... Kg7 {[%clk 0:00:31.9]} 33. Qe3 {[%clk 0:01:20.5]}
33... Rf4 {[%clk 0:00:31.6]} 34. c5 {[%clk 0:01:18.5]} 34... Rd4 {[%clk
0:00:27.3]} 35. Rxd4 {[%clk 0:01:10.8]} 35... exd4 {[%clk 0:00:28.2]} 36. Qxd4+
{[%clk 0:01:10.3]} 36... Kf7 {[%clk 0:00:27.9]} 37. cxd6 {[%clk 0:01:10.9]}
37... Ke6 {[%clk 0:00:28.3]} 38. Qg4+ {[%clk 0:01:04.7]} 38... Kxd6 {[%clk
0:00:27.8]} 39. Qh5 {[%clk 0:01:05.6]} 39... Kc7 {[%clk 0:00:24.8]} 40. Qxh6
{[%clk 0:01:05.8]} 40... Rd2 {[%clk 0:00:25]} 41. Qxg5 {[%clk 0:00:59.1]} 41...
Rxa2 {[%clk 0:00:24.8]} 42. h4 {[%clk 0:00:59.6]} 42... Kb6 {[%clk 0:00:18.8]}
43. b4 {[%clk 0:00:58.9]} 43... Ka7 {[%clk 0:00:16.5]} 44. h5 {[%clk 0:00:57.7]}
44... a5 {[%clk 0:00:14]} 45. h6 {[%clk 0:00:52.6]} 45... axb4 {[%clk
0:00:13.7]} 46. h7 {[%clk 0:00:51.1]} 46... b3 {[%clk 0:00:13.9]} 47. h8=Q
{[%clk 0:00:49.1]} 47... b2 {[%clk 0:00:14]} 48. Qc5+ {[%clk 0:00:41.8]} 48...
b6 {[%clk 0:00:05.9]} 49. Qxc6 {[%clk 0:00:41.8]} 49... b1=Q {[%clk 0:00:05.6]}
50. Qha8# {[%clk 0:00:41.4]} 1-0

[Event "Late-Titled-Tuesday-Blitz-February-27-2024"]
[Site "Chess.com"]
[Date "2024.02.27"]
[Round "3"]
[White "Elsa167"]
[Black "biostatistician"]
[Result "1-0"]
[WhiteElo "2905"]
[BlackElo "2583"]
[TimeControl "180+1"]
[EndTime "14:28:52 PST"]
[Termination "Elsa167 won on time"]

1. d4 {[%clk 0:03:00.9]} 1... Nf6 {[%clk 0:02:59.4]} 2. c4 {[%clk 0:03:00.5]}
2... g6 {[%clk 0:02:59.3]} 3. Nc3 {[%clk 0:03:00.4]} 3... Bg7 {[%clk 0:02:59.8]}
4. e4 {[%clk 0:03:00.7]} 4... d6 {[%clk 0:03:00.2]} 5. h3 {[%clk 0:03:01.2]}
5... O-O {[%clk 0:03:00.8]} 6. Be3 {[%clk 0:03:01.5]} 6... Nc6 {[%clk
0:03:00.7]} 7. d5 {[%clk 0:03:00.5]} 7... Ne5 {[%clk 0:03:01]} 8. f4 {[%clk
0:03:01]} 8... Ned7 {[%clk 0:03:01.5]} 9. g4 {[%clk 0:03:01.6]} 9... e6 {[%clk
0:03:01.2]} 10. dxe6 {[%clk 0:03:00.2]} 10... fxe6 {[%clk 0:03:01]} 11. Bg2
{[%clk 0:03:00.5]} 11... e5 {[%clk 0:02:57.1]} 12. f5 {[%clk 0:02:58.1]} 12...
gxf5 {[%clk 0:02:57.4]} 13. exf5 {[%clk 0:02:57.1]} 13... Nb6 {[%clk 0:02:15.3]}
14. Nge2 {[%clk 0:02:22.7]} 14... Qe8 {[%clk 0:01:55.5]} 15. b3 {[%clk
0:02:13.5]} 15... Bd7 {[%clk 0:01:41]} 16. Ng3 {[%clk 0:01:37.7]} 16... Bc6
{[%clk 0:01:39]} 17. Qe2 {[%clk 0:01:35.8]} 17... Bxg2 {[%clk 0:01:28.6]} 18.
Qxg2 {[%clk 0:01:36.7]} 18... e4 {[%clk 0:01:28.5]} 19. Rc1 {[%clk 0:01:14.4]}
19... Qe5 {[%clk 0:01:06.9]} 20. g5 {[%clk 0:01:10.1]} 20... Nfd7 {[%clk
0:01:04.3]} 21. f6 {[%clk 0:01:07.4]} 21... Nxf6 {[%clk 0:00:58.7]} 22. gxf6
{[%clk 0:01:07]} 22... Rxf6 {[%clk 0:00:59.6]} 23. Rg1 {[%clk 0:00:57.2]} 23...
Rg6 {[%clk 0:00:53.7]} 24. Nce2 {[%clk 0:00:36.3]} 24... Rf8 {[%clk 0:00:38.9]}
25. Qxe4 {[%clk 0:00:30]} 25... Qxe4 {[%clk 0:00:19.8]} 26. Nxe4 {[%clk
0:00:30.1]} 26... Rxg1+ {[%clk 0:00:12.8]} 27. Bxg1 {[%clk 0:00:29.7]} 27... Re8
{[%clk 0:00:13.7]} 28. N4c3 {[%clk 0:00:18.4]} 28... Nd7 {[%clk 0:00:07]} 29.
Rd1 {[%clk 0:00:13.8]} 29... Ne5 {[%clk 0:00:06.8]} 30. Bf2 {[%clk 0:00:11.9]}
30... Nf3+ {[%clk 0:00:06.3]} 31. Kf1 {[%clk 0:00:12.5]} 31... Be5 {[%clk
0:00:03.4]} 32. Nd5 {[%clk 0:00:12]} 32... c6 {[%clk 0:00:02.5]} 33. Ne3 {[%clk
0:00:11.8]} 33... Rf8 {[%clk 0:00:02.4]} 34. Kg2 {[%clk 0:00:10.7]} 1-0

[Event "Late-Titled-Tuesday-Blitz-February-27-2024"]
[Site "Chess.com"]
[Date "2024.02.27"]
[Round "3"]
[White "Englishman_18"]
[Black "aghasiyevkamal"]
[Result "0-1"]
[WhiteElo "2406"]
[BlackElo "2611"]
[TimeControl "180+1"]
[EndTime "14:28:53 PST"]
[Termination "aghasiyevkamal won on time"]

1. Nf3 {[%clk 0:03:00.9]} 1... d5 {[%clk 0:02:58.4]} 2. g3 {[%clk 0:02:59.8]}
2... Nf6 {[%clk 0:02:58.5]} 3. Bg2 {[%clk 0:02:58.6]} 3... e6 {[%clk 0:02:57]}
4. O-O {[%clk 0:02:48.1]} 4... Be7 {[%clk 0:02:34.3]} 5. c4 {[%clk 0:02:43.2]}
5... O-O {[%clk 0:02:23.9]} 6. d4 {[%clk 0:02:42.2]} 6... dxc4 {[%clk
0:02:11.7]} 7. Qa4 {[%clk 0:02:40.6]} 7... c5 {[%clk 0:02:05.5]} 8. Qxc4 {[%clk
0:02:31.8]} 8... Qd5 {[%clk 0:02:01.2]} 9. Qd3 {[%clk 0:02:15.8]} 9... Nc6
{[%clk 0:01:59.1]} 10. Nc3 {[%clk 0:02:13.4]} 10... Qh5 {[%clk 0:01:59.2]} 11.
e3 {[%clk 0:01:47.6]} 11... Rd8 {[%clk 0:01:52.7]} 12. Qe2 {[%clk 0:01:45.2]}
12... e5 {[%clk 0:01:47.9]} 13. dxe5 {[%clk 0:01:43.3]} 13... Nxe5 {[%clk
0:01:47.7]} 14. Nxe5 {[%clk 0:01:42.1]} 14... Qxe5 {[%clk 0:01:47.7]} 15. e4
{[%clk 0:01:33.4]} 15... Be6 {[%clk 0:01:35.7]} 16. Bf4 {[%clk 0:01:32.2]} 16...
Qd4 {[%clk 0:01:29.5]} 17. Rfd1 {[%clk 0:01:24.9]} 17... Qb4 {[%clk 0:01:24.4]}
18. Bc7 {[%clk 0:01:20.8]} 18... Rd4 {[%clk 0:01:20.8]} 19. Be5 {[%clk
0:01:16.8]} 19... Rxd1+ {[%clk 0:00:59.9]} 20. Rxd1 {[%clk 0:01:15.9]} 20... Qa5
{[%clk 0:00:43]} 21. Nd5 {[%clk 0:01:03.1]} 21... Bxd5 {[%clk 0:00:41.3]} 22.
exd5 {[%clk 0:01:02.7]} 22... Qxa2 {[%clk 0:00:20.2]} 23. d6 {[%clk 0:01:01.2]}
23... Bd8 {[%clk 0:00:20.5]} 24. Bxb7 {[%clk 0:00:26.2]} 24... Rb8 {[%clk
0:00:20.7]} 25. d7 {[%clk 0:00:19.6]} 25... Rxb7 {[%clk 0:00:20.8]} 26. Bxf6
{[%clk 0:00:19.9]} 26... gxf6 {[%clk 0:00:20]} 27. Qe8+ {[%clk 0:00:17.4]} 27...
Kg7 {[%clk 0:00:20.4]} 28. Qxd8 {[%clk 0:00:17.7]} 28... Qb3 {[%clk 0:00:19.2]}
29. Rd2 {[%clk 0:00:13.8]} 29... Qb4 {[%clk 0:00:16.6]} 30. Qxf6+ {[%clk
0:00:03.8]} 30... Kxf6 {[%clk 0:00:15.8]} 31. d8=Q+ {[%clk 0:00:04.1]} 31... Kg6
{[%clk 0:00:08.8]} 32. Rd6+ {[%clk 0:00:03.1]} 32... Kf5 {[%clk 0:00:05.8]} 33.
Qf6+ {[%clk 0:00:02]} 33... Kg4 {[%clk 0:00:05.6]} 0-1

[Event "Late-Titled-Tuesday-Blitz-February-27-2024"]
[Site "Chess.com"]
[Date "2024.02.27"]
[Round "3"]
[White "CheckBits"]
[Black "Kgutierrez95"]
[Result "0-1"]
[WhiteElo "2356"]
[BlackElo "2168"]
[TimeControl "180+1"]
[EndTime "14:28:53 PST"]
[Termination "Kgutierrez95 won on time"]

1. e4 {[%clk 0:02:51.7]} 1... c6 {[%clk 0:02:58.5]} 2. d4 {[%clk 0:02:49.6]}
2... d5 {[%clk 0:02:58.2]} 3. Nd2 {[%clk 0:02:48.3]} 3... dxe4 {[%clk
0:02:57.4]} 4. Nxe4 {[%clk 0:02:45.7]} 4... Bf5 {[%clk 0:02:56.8]} 5. Ng3 {[%clk
0:02:44.3]} 5... Bg6 {[%clk 0:02:56.5]} 6. h4 {[%clk 0:02:41.6]} 6... h6 {[%clk
0:02:53.8]} 7. Nf3 {[%clk 0:02:41.3]} 7... Nd7 {[%clk 0:02:47.3]} 8. Bd3 {[%clk
0:02:38.1]} 8... Bxd3 {[%clk 0:02:44.2]} 9. Qxd3 {[%clk 0:02:36.2]} 9... e6
{[%clk 0:02:43.1]} 10. Bf4 {[%clk 0:02:29]} 10... Qa5+ {[%clk 0:02:35.5]} 11.
Bd2 {[%clk 0:02:15.4]} 11... Bb4 {[%clk 0:02:28.9]} 12. c3 {[%clk 0:02:13.6]}
12... Be7 {[%clk 0:02:27.3]} 13. O-O-O {[%clk 0:01:54.6]} 13... Ngf6 {[%clk
0:02:23.9]} 14. Kb1 {[%clk 0:01:53.5]} 14... O-O-O {[%clk 0:02:04.1]} 15. c4
{[%clk 0:01:49.5]} 15... Qa4 {[%clk 0:01:59.3]} 16. Rhe1 {[%clk 0:01:37.2]}
16... Bd6 {[%clk 0:01:34.4]} 17. b3 {[%clk 0:01:27.7]} 17... Qa6 {[%clk
0:01:29.9]} 18. Ne4 {[%clk 0:01:20.5]} 18... Nxe4 {[%clk 0:01:26.7]} 19. Rxe4
{[%clk 0:01:19.7]} 19... Nf6 {[%clk 0:00:57.8]} 20. Re2 {[%clk 0:01:18.4]} 20...
Kb8 {[%clk 0:00:55.3]} 21. Qc2 {[%clk 0:01:11.4]} 21... c5 {[%clk 0:00:52.7]}
22. dxc5 {[%clk 0:00:59.9]} 22... Bxc5 {[%clk 0:00:53.6]} 23. Ne5 {[%clk
0:00:50.4]} 23... Rhf8 {[%clk 0:00:46]} 24. Bc3 {[%clk 0:00:48.9]} 24... Rxd1+
{[%clk 0:00:41.8]} 25. Qxd1 {[%clk 0:00:48.7]} 25... Qd6 {[%clk 0:00:41.8]} 26.
Rd2 {[%clk 0:00:46.5]} 26... Qc7 {[%clk 0:00:41.6]} 27. Nd7+ {[%clk 0:00:34.8]}
27... Nxd7 {[%clk 0:00:40.4]} 28. Rxd7 {[%clk 0:00:35.4]} 28... Qc8 {[%clk
0:00:35.9]} 29. Bxg7 {[%clk 0:00:34.6]} 29... Rg8 {[%clk 0:00:33.1]} 30. Be5+
{[%clk 0:00:33.3]} 30... Ka8 {[%clk 0:00:32.9]} 31. f3 {[%clk 0:00:27.3]} 31...
Bb6 {[%clk 0:00:28.7]} 32. g4 {[%clk 0:00:25.3]} 32... f5 {[%clk 0:00:25.4]} 33.
Bf4 {[%clk 0:00:12.5]} 33... fxg4 {[%clk 0:00:22.8]} 34. fxg4 {[%clk 0:00:12.6]}
34... Rxg4 {[%clk 0:00:22.6]} 35. Qxg4 {[%clk 0:00:09.2]} 35... Qxd7 {[%clk
0:00:22.7]} 36. Qg7 {[%clk 0:00:10.1]} 36... Qxg7 {[%clk 0:00:21.9]} 0-1

[Event "Late-Titled-Tuesday-Blitz-February-27-2024"]
[Site "Chess.com"]
[Date "2024.02.27"]
[Round "3"]
[White "Inepton_Fermion"]
[Black "Fh2411"]
[Result "1-0"]
[WhiteElo "2442"]
[BlackElo "2605"]
[TimeControl "180+1"]
[EndTime "14:28:55 PST"]
[Termination "Inepton_Fermion won by resignation"]

1. d4 {[%clk 0:02:59.1]} 1... d5 {[%clk 0:02:56]} 2. Nc3 {[%clk 0:02:59]} 2...
Nf6 {[%clk 0:02:54.7]} 3. Bg5 {[%clk 0:02:58.8]} 3... c6 {[%clk 0:02:54.9]} 4.
e3 {[%clk 0:02:57.5]} 4... Bf5 {[%clk 0:02:54.2]} 5. Bxf6 {[%clk 0:02:56.2]}
5... exf6 {[%clk 0:02:55.1]} 6. Bd3 {[%clk 0:02:56.8]} 6... Bg6 {[%clk
0:02:54.7]} 7. h4 {[%clk 0:02:56.1]} 7... Nd7 {[%clk 0:02:48.4]} 8. h5 {[%clk
0:02:55.6]} 8... Bxd3 {[%clk 0:02:47.9]} 9. Qxd3 {[%clk 0:02:56.5]} 9... Bd6
{[%clk 0:02:46.2]} 10. g4 {[%clk 0:02:49]} 10... Qe7 {[%clk 0:02:42.2]} 11. Nf3
{[%clk 0:02:47.3]} 11... O-O-O {[%clk 0:02:42.5]} 12. O-O-O {[%clk 0:02:45.8]}
12... Nb6 {[%clk 0:02:17.8]} 13. Nh4 {[%clk 0:02:32.7]} 13... g6 {[%clk
0:02:16.7]} 14. Nf3 {[%clk 0:02:17.6]} 14... Qe6 {[%clk 0:02:08.2]} 15. Rdg1
{[%clk 0:02:15.4]} 15... a5 {[%clk 0:01:45.9]} 16. Nd2 {[%clk 0:02:14.1]} 16...
a4 {[%clk 0:01:40.3]} 17. a3 {[%clk 0:02:11.1]} 17... Qe7 {[%clk 0:01:36.4]} 18.
Ne2 {[%clk 0:01:58.2]} 18... Kc7 {[%clk 0:01:25.3]} 19. Qc3 {[%clk 0:01:57.1]}
19... Ra8 {[%clk 0:01:20.7]} 20. Kb1 {[%clk 0:01:56]} 20... Qe6 {[%clk
0:00:48.8]} 21. Nc1 {[%clk 0:01:54.5]} 21... Nd7 {[%clk 0:00:43.8]} 22. Nd3
{[%clk 0:01:52]} 22... b5 {[%clk 0:00:41.4]} 23. Nb4 {[%clk 0:01:49.8]} 23...
Be7 {[%clk 0:00:31.1]} 24. Rg3 {[%clk 0:00:55.8]} 24... Nb6 {[%clk 0:00:29]} 25.
Re1 {[%clk 0:00:55.3]} 25... Nc4 {[%clk 0:00:25.3]} 26. f3 {[%clk 0:00:31]}
26... Bxb4 {[%clk 0:00:21.8]} 27. Qxb4 {[%clk 0:00:29.6]} 27... Qd6 {[%clk
0:00:19]} 28. Qxd6+ {[%clk 0:00:27.9]} 28... Nxd6 {[%clk 0:00:15.8]} 29. e4
{[%clk 0:00:26.9]} 29... Rhe8 {[%clk 0:00:16.4]} 30. Rgg1 {[%clk 0:00:20.4]}
30... Rad8 {[%clk 0:00:16.2]} 31. c3 {[%clk 0:00:20.4]} 31... Nc8 {[%clk
0:00:09.3]} 32. Kc2 {[%clk 0:00:20.2]} 32... Nb6 {[%clk 0:00:09.4]} 33. Kd3
{[%clk 0:00:18.1]} 33... Kd6 {[%clk 0:00:08.6]} 34. Rh1 {[%clk 0:00:16.3]} 34...
c5 {[%clk 0:00:09]} 35. exd5 {[%clk 0:00:15.1]} 35... Kxd5 {[%clk 0:00:08.3]}
36. Rxe8 {[%clk 0:00:14.9]} 36... Rxe8 {[%clk 0:00:08.7]} 37. Ne4 {[%clk
0:00:14.3]} 37... cxd4 {[%clk 0:00:08.3]} 38. Nxf6+ {[%clk 0:00:14.4]} 1-0

[Event "Late-Titled-Tuesday-Blitz-February-27-2024"]
[Site "Chess.com"]
[Date "2024.02.27"]
[Round "3"]
[White "HeinichessPY"]
[Black "best926"]
[Result "0-1"]
[WhiteElo "2240"]
[BlackElo "2544"]
[TimeControl "180+1"]
[EndTime "14:28:55 PST"]
[Termination "best926 won by checkmate"]

1. c4 {[%clk 0:03:00.9]} 1... Nf6 {[%clk 0:02:58.3]} 2. g3 {[%clk 0:02:59.2]}
2... g6 {[%clk 0:02:57.9]} 3. Bg2 {[%clk 0:02:58.7]} 3... Bg7 {[%clk 0:02:58.5]}
4. Nf3 {[%clk 0:02:57.3]} 4... O-O {[%clk 0:02:59.2]} 5. O-O {[%clk 0:02:56.1]}
5... d6 {[%clk 0:02:59.8]} 6. Nc3 {[%clk 0:02:54.9]} 6... e5 {[%clk 0:03:00.2]}
7. d3 {[%clk 0:02:54.4]} 7... c6 {[%clk 0:03:00.5]} 8. Rb1 {[%clk 0:02:53.6]}
8... a5 {[%clk 0:02:58.6]} 9. a3 {[%clk 0:02:53.9]} 9... h6 {[%clk 0:02:59]} 10.
b4 {[%clk 0:02:51.1]} 10... axb4 {[%clk 0:02:59.9]} 11. axb4 {[%clk 0:02:51.5]}
11... Be6 {[%clk 0:03:00.8]} 12. b5 {[%clk 0:02:50.5]} 12... Nbd7 {[%clk
0:03:01.4]} 13. bxc6 {[%clk 0:02:43.5]} 13... bxc6 {[%clk 0:03:02.3]} 14. Ne1
{[%clk 0:02:37]} 14... d5 {[%clk 0:03:02.3]} 15. cxd5 {[%clk 0:02:08.2]} 15...
cxd5 {[%clk 0:03:02.4]} 16. Bd2 {[%clk 0:02:03.5]} 16... Rb8 {[%clk 0:02:45.9]}
17. Nf3 {[%clk 0:01:59.8]} 17... Rxb1 {[%clk 0:02:35.2]} 18. Qxb1 {[%clk
0:02:00.7]} 18... d4 {[%clk 0:02:34.2]} 19. Nb5 {[%clk 0:01:49.6]} 19... Nd5
{[%clk 0:02:29.9]} 20. Rc1 {[%clk 0:01:45.3]} 20... Qa8 {[%clk 0:02:15.5]} 21.
Nc7 {[%clk 0:01:36.7]} 21... Nxc7 {[%clk 0:02:15.4]} 22. Rxc7 {[%clk 0:01:37.1]}
22... Rb8 {[%clk 0:02:16.3]} 23. Qc1 {[%clk 0:01:29.4]} 23... Qa2 {[%clk
0:02:11]} 24. Rc2 {[%clk 0:01:21.1]} 24... Qb1 {[%clk 0:02:03.7]} 25. Qxb1
{[%clk 0:00:58.7]} 25... Rxb1+ {[%clk 0:02:03.5]} 26. Rc1 {[%clk 0:00:58.9]}
26... Rb2 {[%clk 0:02:01.3]} 27. h3 {[%clk 0:00:43.3]} 27... Bf8 {[%clk
0:02:00.5]} 28. Rc8 {[%clk 0:00:42.5]} 28... Kg7 {[%clk 0:01:58.7]} 29. Ba5
{[%clk 0:00:30.2]} 29... Rxe2 {[%clk 0:01:49.5]} 30. g4 {[%clk 0:00:14.1]} 30...
Be7 {[%clk 0:01:41.2]} 31. Bd8 {[%clk 0:00:12.9]} 31... Bxd8 {[%clk 0:00:52.9]}
32. Rxd8 {[%clk 0:00:13.8]} 32... Kf6 {[%clk 0:00:53.4]} 33. Kh2 {[%clk
0:00:11.7]} 33... Rxf2 {[%clk 0:00:50]} 34. Kg3 {[%clk 0:00:11.8]} 34... Rb2
{[%clk 0:00:48.7]} 35. h4 {[%clk 0:00:11.9]} 35... Nc5 {[%clk 0:00:25.3]} 36.
g5+ {[%clk 0:00:08.9]} 36... hxg5 {[%clk 0:00:25.2]} 37. Nxg5 {[%clk 0:00:09.5]}
37... Nxd3 {[%clk 0:00:22.3]} 38. Re8 {[%clk 0:00:04.4]} 38... Nf4 {[%clk
0:00:20.9]} 39. Ne4+ {[%clk 0:00:04.7]} 39... Kg7 {[%clk 0:00:21.1]} 40. h5
{[%clk 0:00:03.4]} 40... Rxg2+ {[%clk 0:00:20.6]} 41. Kh4 {[%clk 0:00:03.8]}
41... Rg4# {[%clk 0:00:20.1]} 0-1

[Event "Late-Titled-Tuesday-Blitz-February-27-2024"]
[Site "Chess.com"]
[Date "2024.02.27"]
[Round "3"]
[White "trriinu"]
[Black "Machidon"]
[Result "0-1"]
[WhiteElo "2246"]
[BlackElo "2495"]
[TimeControl "180+1"]
[EndTime "14:29:01 PST"]
[Termination "Machidon won on time"]

1. e4 {[%clk 0:03:00.9]} 1... Nf6 {[%clk 0:02:58.9]} 2. e5 {[%clk 0:03:00.3]}
2... Nd5 {[%clk 0:02:58.9]} 3. d4 {[%clk 0:03:01.1]} 3... d6 {[%clk 0:02:58.8]}
4. c4 {[%clk 0:03:01.9]} 4... Nb6 {[%clk 0:02:58.9]} 5. exd6 {[%clk 0:03:02.6]}
5... exd6 {[%clk 0:02:59.5]} 6. Nc3 {[%clk 0:03:02.6]} 6... Be7 {[%clk
0:02:59.9]} 7. h3 {[%clk 0:03:02.9]} 7... O-O {[%clk 0:02:59.5]} 8. Nf3 {[%clk
0:03:03.2]} 8... Bf5 {[%clk 0:02:59.7]} 9. Be2 {[%clk 0:03:02.4]} 9... Nc6
{[%clk 0:02:57.9]} 10. a3 {[%clk 0:02:59]} 10... Bf6 {[%clk 0:02:56.6]} 11. O-O
{[%clk 0:02:58.9]} 11... d5 {[%clk 0:02:55.9]} 12. c5 {[%clk 0:02:51.9]} 12...
Nc8 {[%clk 0:02:56.1]} 13. Bf4 {[%clk 0:02:42]} 13... N8e7 {[%clk 0:02:47.6]}
14. b4 {[%clk 0:01:49]} 14... a6 {[%clk 0:02:42.4]} 15. Re1 {[%clk 0:01:21.8]}
15... Be4 {[%clk 0:02:36.8]} 16. Ne5 {[%clk 0:01:14.1]} 16... Ng6 {[%clk
0:01:08.5]} 17. Nxc6 {[%clk 0:00:34.7]} 17... bxc6 {[%clk 0:01:09.4]} 18. Be3
{[%clk 0:00:34.9]} 18... Bf5 {[%clk 0:01:02.3]} 19. Bd3 {[%clk 0:00:14.6]} 19...
Qd7 {[%clk 0:00:57.4]} 20. Qc2 {[%clk 0:00:13.7]} 20... Nh4 {[%clk 0:00:46.6]}
21. Bxf5 {[%clk 0:00:04.2]} 21... Nxf5 {[%clk 0:00:47.5]} 22. Rad1 {[%clk
0:00:01.8]} 22... Rfe8 {[%clk 0:00:44.9]} 23. Qd3 {[%clk 0:00:02.1]} 23... Re7
{[%clk 0:00:36.9]} 24. Ne2 {[%clk 0:00:02.2]} 24... a5 {[%clk 0:00:24.8]} 25.
Nf4 {[%clk 0:00:02.4]} 25... axb4 {[%clk 0:00:24.2]} 26. axb4 {[%clk 0:00:03.3]}
26... Rae8 {[%clk 0:00:23.9]} 27. b5 {[%clk 0:00:03]} 27... Nxd4 {[%clk
0:00:22.3]} 28. Bd2 {[%clk 0:00:02.1]} 28... Rxe1+ {[%clk 0:00:20.7]} 29. Rxe1
{[%clk 0:00:02.6]} 29... Rxe1+ {[%clk 0:00:20.3]} 30. Bxe1 {[%clk 0:00:03]}
30... Nxb5 {[%clk 0:00:19.8]} 31. Bd2 {[%clk 0:00:02.7]} 31... g6 {[%clk
0:00:19.7]} 32. g4 {[%clk 0:00:02.4]} 32... Kg7 {[%clk 0:00:18.5]} 33. Ne2
{[%clk 0:00:02.6]} 33... Qe7 {[%clk 0:00:16.8]} 34. Ng3 {[%clk 0:00:02.8]} 34...
Qxc5 {[%clk 0:00:16.4]} 35. g5 {[%clk 0:00:01.8]} 35... Be5 {[%clk 0:00:16.4]}
36. Ne2 {[%clk 0:00:01.4]} 36... Qc4 {[%clk 0:00:16.1]} 37. Qf3 {[%clk
0:00:01.3]} 37... Qe4 {[%clk 0:00:15.2]} 38. Qxe4 {[%clk 0:00:01]} 38... dxe4
{[%clk 0:00:16.1]} 0-1